bitfinex/quotes_ETHUSD_20260209
["timestamp","ask_amount","ask_price","bid_price","bid_amount"]
[1770647625268,0.1759222,2019.9,2018.8,0.001]
[1770647625901,1.23762376,2020.0,2018.8,0.001]
[1770647626115,4.94911992,2020.6,2018.9,4.09266756]
[1770647626411,1.31090093,2020.5,2018.8,0.001]
[1770647626603,4.94926998,2020.7,2019.2,0.0735222]
[1770647626768,4.94926998,2020.7,2019.0,1.23823675]
[1770647626967,4.94926998,2020.7,2019.0,1.31175895]
[1770647627164,4.94926998,2020.7,2019.3,0.0735222]
[1770647627363,4.94926998,2020.7,2019.6,0.0735222]
[1770647627662,1.23719503,2020.7,2019.6,0.0735222]
[1770647627868,4.95076727,2020.8,2019.6,0.0735222]
[1770647627869,1.23916082,2020.8,2019.6,0.0735222]
[1770647628068,1.23916082,2020.8,2020.2,0.0735222]
[1770647628069,0.002,2020.8,2020.2,0.0735222]
[1770647628318,3.96197146,2023.4,2020.5,4.09266756]
[1770647628517,1.30912739,2023.3,2021.4,0.0735222]
[1770647628695,1.49256772,2023.3,2021.7,0.0735222]
[1770647629018,1.49256772,2023.3,2021.5,1.23670541]
[1770647629168,1.23560519,2023.3,2021.7,0.0735222]
[1770647629367,1.23560519,2023.3,2021.4,1.23676006]
[1770647629368,10.76195983,2022.9,2021.4,1.23676006]
[1770647629672,0.0735222,2022.7,2021.0,5.25611494]
[1770647629891,0.0735222,2022.7,2021.0,4.9480441]
[1770647630094,0.0735222,2022.4,2020.8,1.23709126]
[1770647630293,0.1024,2022.3,2020.5,0.0735222]
[1770647630492,0.1024,2022.3,2020.3,4.01914536]
[1770647630493,0.0735222,2022.1,2020.3,4.01914536]
[1770647630810,0.0735222,2021.8,2019.9,5.02409536]
[1770647631021,0.1024,2021.6,2020.1,1.23751357]
[1770647631304,1.2363996,2022.0,2019.8,4.09266756]
[1770647631505,1.2363996,2022.0,2020.5,4.09266756]
[1770647631882,1.2363996,2022.0,2020.5,0.0735222]
[1770647632068,1.2363996,2022.0,2020.4,0.0735222]
[1770647632413,1.3099218,2022.0,2020.3,1.23741991]
[1770647632714,1.2363996,2022.0,2020.6,0.0735222]
[1770647633375,1.23603282,2022.6,2021.2,0.0735222]
[1770647633567,1.23566627,2023.2,2021.5,0.0735222]
[1770647633907,0.0735222,2023.0,2021.2,0.0735222]
[1770647634081,1.23566627,2023.2,2021.6,0.0735222]
[1770647634278,1.23566627,2023.2,2021.9,0.0735222]
[1770647634687,4.94266508,2023.5,2022.2,1.30975059]
[1770647635675,4.94266508,2023.5,2021.7,1.23655361]
[1770647635873,0.002,2021.8,2021.4,12.42406528]
[1770647636088,0.3359703,2023.0,2021.2,1.23683437]
[1770647636306,0.0735222,2022.6,2020.6,0.0735222]
[1770647636481,0.002,2022.0,2020.7,4.94875588]
[1770647636676,0.002,2022.0,2021.0,1.23701138]
[1770647637199,0.002,2022.0,2020.7,4.01914536]
[1770647637403,0.002,2022.0,2020.8,1.23712367]
[1770647637603,0.002,2022.0,2020.3,0.0735222]
[1770647637604,0.002,2022.0,2020.5,0.0735222]
[1770647637801,0.002,2022.0,2021.1,0.0735222]
[1770647638190,0.002,2022.0,2021.4,0.0735222]
[1770647638791,0.002,2022.0,2021.1,0.0735222]
[1770647638989,0.002,2022.0,2020.7,1.23714705]
[1770647639190,0.002,2022.0,2020.8,1.23710073]
[1770647639388,0.2355703,2022.0,2020.4,1.2373767]
[1770647639591,0.1024,2021.9,2020.0,7.47614536]
[1770647639788,0.1024,2021.9,2020.0,8.40739599]
[1770647639981,0.0735222,2021.7,2020.1,1.23753645]
[1770647640312,0.1024,2021.9,2020.1,1.31104606]
[1770647640621,0.002,2022.0,2020.9,4.94815416]
[1770647640790,0.002,2022.0,2020.4,0.0735222]
[1770647640978,0.1024,2021.9,2020.1,4.09266756]
[1770647641179,0.1024,2021.9,2020.5,1.23728918]
[1770647641373,0.1024,2021.9,2020.5,0.0735222]
[1770647641609,0.1024,2021.9,2019.9,0.0735222]
[1770647641802,0.1024,2021.9,2020.3,1.23743955]
[1770647642003,0.1024,2021.9,2019.6,4.95130326]
[1770647642004,0.1024,2021.7,2020.0,0.0735222]
[1770647642225,0.1024,2021.3,2019.5,0.0735222]
[1770647642515,10.76195983,2021.4,2019.5,0.0735222]
[1770647642677,10.76195983,2021.4,2019.8,5.0245018]
[1770647642881,1.23682778,2021.3,2019.8,1.2377078]
[1770647643078,1.23682778,2021.3,2019.9,0.0735222]
[1770647643717,4.94731113,2021.7,2019.9,0.0735222]
[1770647643718,1.23652191,2021.8,2020.2,0.0735222]
[1770647643927,1.23840224,2022.0,2021.1,0.0735222]
[1770647644208,1.23840563,2022.0,2020.5,0.0735222]
[1770647644399,1.23840563,2022.0,2020.8,0.0735222]
[1770647644607,1.23840563,2022.0,2020.5,0.0735222]
[1770647644917,0.002,2022.0,2020.6,1.23725626]
[1770647645290,0.002,2022.0,2020.8,0.0735222]
[1770647645718,0.002,2022.0,2020.6,1.23725626]
[1770647646017,0.002,2022.0,2020.8,0.0735222]
[1770647646381,0.002,2022.0,2021.4,0.0735222]
[1770647646589,1.23560519,2023.3,2021.7,0.0735222]
[1770647647114,4.94242079,2023.5,2022.0,0.0735222]
[1770647647710,10.77018294,2023.3,2021.7,1.23654561]
[1770647647913,5.01594299,2023.5,2021.7,1.23654561]
[1770647648082,15.71260373,2023.5,2021.7,1.31006781]
[1770647648512,3.96197146,2023.3,2021.7,1.23658132]
[1770647648698,0.1024,2023.2,2021.7,1.23658203]
[1770647648903,1.23572734,2023.1,2021.2,4.9475408]
[1770647649099,1.23572734,2023.1,2021.4,0.0735222]
[1770647649413,1.23772734,2023.1,2021.2,4.9475408]
[1770647649604,0.1024,2023.0,2021.2,4.9475408]
[1770647649807,10.84370514,2022.4,2020.9,1.23703496]
[1770647650009,10.84370514,2022.4,2020.7,0.001]
[1770647650010,0.0735222,2022.1,2020.7,0.001]
[1770647650208,10.77018294,2022.4,2020.7,0.001]
[1770647650209,0.1024,2022.3,2020.7,0.001]
[1770647650400,0.1024,2022.3,2021.1,1.23693558]
[1770647650603,0.1024,2022.6,2021.1,1.23693558]
[1770647650808,10.77018294,2022.9,2021.1,1.31045778]
[1770647651017,1.23597172,2022.7,2021.1,1.31045778]
[1770647651498,1.23597172,2022.7,2020.7,0.001]
[1770647651499,0.1024,2022.3,2020.7,0.001]
[1770647651708,0.1024,2022.3,2020.8,4.94842371]
[1770647651892,0.1759222,2022.3,2020.7,0.001]
[1770647652097,0.1024,2021.8,2020.7,0.001]
[1770647652444,0.1024,2022.3,2020.7,1.23815183]
[1770647652650,0.1024,2022.3,2020.7,0.001]
[1770647652651,0.0735222,2022.2,2020.7,0.001]
[1770647652862,10.77018294,2021.5,2019.5,4.01914536]
[1770647652994,1.23682778,2021.3,2019.5,4.09266756]
[1770647653198,1.23682778,2021.3,2019.5,0.0735222]
[1770647653516,1.31034998,2021.3,2019.3,1.23805279]
[1770647653714,0.1024,2021.2,2019.3,1.23805279]
[1770647653900,10.77018294,2020.9,2019.3,1.23805279]
[1770647654641,10.77018294,2020.9,2019.2,1.23806939]
[1770647654996,0.1024,2020.3,2018.8,1.23935579]
[1770647655208,4.69419503,2020.7,2019.2,0.0735222]
[1770647655743,4.69419503,2020.7,2019.0,1.23822219]
[1770647655940,4.69419503,2020.7,2019.2,0.0735222]
[1770647656140,4.69419503,2020.7,2019.0,1.23822219]
[1770647656437,1.23719503,2020.7,2019.5,0.0735222]
[1770647657223,0.1024,2021.1,2019.1,4.95269973]
[1770647657539,0.0735222,2021.0,2019.5,1.23791862]
[1770647657693,0.1024,2021.1,2019.5,1.23791862]
[1770647657893,0.0735222,2021.0,2019.0,4.00804883]
[1770647658435,0.0735222,2020.7,2019.1,1.23817179]
[1770647658596,0.1024,2020.5,2018.8,0.001]
[1770647658801,0.1024,2020.2,2018.8,0.001]
[1770647658997,0.0735222,2019.8,2018.8,0.001]
[1770647659297,1.23799148,2019.4,2018.5,0.001]
[1770647661196,1.23780759,2019.7,2018.5,0.001]
[1770647661912,1.23780759,2019.7,2018.6,0.0735222]
[1770647662112,1.23762376,2020.0,2018.6,0.0735222]
[1770647662713,1.23762376,2020.0,2018.5,0.001]
[1770647662908,1.23762376,2020.0,2018.7,0.001]
[1770647663427,4.95034008,2020.1,2018.7,0.001]
[1770647664044,10.77018294,2020.7,2019.1,0.0735222]
[1770647664208,4.9478593,2021.1,2019.4,0.0735222]
[1770647664407,4.9478593,2021.1,2019.7,0.0735222]
[1770647664632,4.9478593,2021.1,2019.8,0.0735222]
[1770647664834,1.23668751,2021.6,2019.8,4.16360304]
[1770647665329,10.77018294,2021.2,2019.7,1.23776339]
[1770647665500,10.77018294,2021.2,2019.7,1.23777863]
[1770647665700,10.77018294,2021.2,2019.5,4.9516327]
[1770647666004,3.6349222,2021.1,2019.3,4.95205245]
[1770647666325,3.6349222,2021.1,2019.6,1.23782193]
[1770647666527,3.459,2021.1,2019.8,1.23774052]
[1770647666706,1.23676659,2021.4,2020.2,0.0735222]
[1770647667215,1.23676659,2021.4,2019.9,4.16360304]
[1770647667622,4.94584301,2022.0,2020.5,0.0735222]
[1770647667813,10.77018294,2021.6,2020.0,1.23762376]
[1770647668022,8.64847983,2022.0,2020.2,0.0735222]
[1770647668224,1.2363996,2022.1,2020.4,4.09008084]
[1770647668411,1.2363996,2022.1,2020.6,4.16360304]
[1770647668606,1.23609394,2022.5,2020.9,0.0735222]
[1770647669039,1.23609394,2022.5,2021.2,0.0735222]
[1770647669538,1.23609394,2022.5,2020.9,0.0735222]
[1770647669847,4.94437577,2022.9,2021.5,0.0735222]
[1770647670048,4.94437577,2022.9,2021.2,0.0735222]
[1770647670447,4.94437577,2022.9,2020.9,5.02156772]
[1770647670448,10.77018294,2022.6,2020.5,4.09008084]
[1770647670657,0.1024,2022.0,2020.5,1.23731615]
[1770647670948,0.1024,2022.0,2019.9,4.16360304]
[1770647670949,0.1759222,2021.8,2019.9,4.16360304]
[1770647671457,0.1024,2021.8,2020.0,4.16360304]
[1770647671615,1.23658307,2021.7,2020.1,1.23756249]
[1770647672541,1.23658307,2021.7,2020.2,0.0735222]
[1770647673750,4.94440508,2022.5,2020.9,0.0735222]
[1770647674044,1.23578843,2023.0,2021.2,4.16360304]
[1770647674215,1.23578843,2023.0,2021.5,0.0735222]
[1770647674412,1.23578843,2023.0,2021.5,4.16360304]
[1770647674722,0.1024,2022.6,2020.8,0.0735222]
[1770647674918,10.77018294,2022.7,2021.1,0.0735222]
[1770647675123,1.23578843,2023.0,2021.1,4.16360304]
[1770647675417,10.77018294,2022.2,2020.4,0.0735222]
[1770647675933,1.23633846,2022.1,2020.5,1.23731749]
[1770647676315,1.23633846,2022.1,2020.7,0.0735222]
[1770647676650,1.23633846,2022.1,2020.5,5.06731749]
[1770647676810,1.30986066,2022.1,2020.4,1.23734155]
[1770647677010,0.002,2021.5,2020.4,0.0735222]
[1770647677332,0.002,2021.5,2020.4,1.23734757]
[1770647677541,0.002,2021.5,2020.1,1.23753048]
[1770647677706,0.002,2021.5,2020.0,3.83]
[1770647677909,0.002,2021.5,2020.0,5.06761596]
[1770647678140,0.002,2021.5,2020.0,3.83]
[1770647678341,10.77018294,2020.9,2019.1,4.09008084]
[1770647678512,3.5604,2020.8,2019.4,1.23795339]
[1770647678835,3.5604,2020.8,2019.3,1.23800536]
[1770647679049,3.5604,2020.8,2019.2,0.0735222]
[1770647679253,3.5604,2020.8,2019.3,1.23799162]
[1770647679469,0.3379703,2021.7,2019.6,0.0735222]
[1770647679757,3.5604,2021.4,2019.8,1.23773584]
[1770647679914,1.23682778,2021.3,2019.7,1.23780759]
[1770647680116,0.2335703,2021.0,2019.1,4.09008084]
[1770647680317,1.23682778,2021.3,2019.6,1.23786305]
[1770647680318,10.87258294,2020.9,2019.6,1.23786305]
[1770647680516,0.2335703,2021.2,2019.6,1.23786305]
[1770647680715,4.94931113,2021.7,2020.5,0.0735222]
[1770647680716,1.23873522,2021.5,2020.5,0.0735222]
[1770647681019,1.2387119,2021.5,2020.8,0.0735222]
[1770647681236,1.2387119,2021.5,2020.5,0.0735222]
[1770647681237,1.2387119,2021.5,2020.2,0.0735222]
[1770647681841,0.002,2021.5,2020.3,1.23743998]
[1770647682144,0.002,2021.5,2019.7,0.0735222]
[1770647682347,10.77018294,2021.4,2019.7,0.0735222]
[1770647682641,0.1024,2021.3,2019.7,1.23775904]
[1770647682862,0.1024,2020.8,2018.8,9.0434746]
[1770647683015,0.1024,2020.8,2019.4,1.23796421]
[1770647683365,0.1024,2020.8,2019.2,1.23811397]
[1770647683668,0.1024,2020.8,2018.8,4.09008084]
[1770647683816,1.23756249,2020.1,2018.7,0.001]
[1770647684022,4.76908469,2020.1,2018.7,0.001]
[1770647684242,10.87258294,2020.0,2018.7,0.001]
[1770647684446,0.1024,2020.0,2018.7,0.001]
[1770647684751,0.1024,2019.6,2018.7,0.001]
[1770647685524,0.1024,2020.0,2018.7,0.001]
[1770647685964,5.219,2021.2,2018.8,1.23832491]
[1770647685965,4.95000495,2020.4,2018.8,1.23832491]
[1770647686118,4.95000495,2020.4,2018.8,1.23835627]
[1770647686423,0.1024,2020.3,2018.8,1.23835627]
[1770647686622,0.1024,2020.3,2018.7,1.23937522]
[1770647686864,0.1024,2020.3,2018.7,1.23938212]
[1770647686865,0.3359703,2020.3,2018.7,1.23938212]
[1770647687018,0.1024,2020.3,2018.8,1.23835707]
[1770647687615,0.1024,2020.3,2018.7,0.001]
[1770647687616,0.0735222,2019.8,2018.7,0.001]
[1770647687819,10.87258294,2019.9,2018.8,1.23833164]
[1770647688027,1.23774631,2019.8,2018.7,0.001]
[1770647688470,15.72018789,2020.4,2018.7,0.001]
[1770647688471,4.94968248,2020.5,2019.1,0.0735222]
[1770647688957,4.69530145,2020.6,2019.4,0.0735222]
[1770647689459,4.94749957,2021.3,2019.7,0.0735222]
[1770647689972,4.94749957,2021.3,2019.8,1.23774631]
[1770647690333,4.94749957,2021.3,2020.0,0.0735222]
[1770647690730,0.002,2021.5,2020.4,0.0735222]
[1770647690934,0.002,2021.5,2020.7,0.0735222]
[1770647691159,0.002,2021.7,2021.0,0.0735222]
[1770647691342,0.002,2021.7,2020.1,3.92385848]
[1770647691343,1.23860057,2021.7,2020.1,3.92385848]
[1770647691738,1.23860057,2021.7,2020.3,0.0735222]
[1770647691943,0.002,2021.7,2020.7,1.23719503]
[1770647692650,0.002,2021.7,2020.6,1.23720838]
[1770647693635,0.002,2021.7,2020.6,1.31073058]
[1770647694653,0.002,2021.7,2020.5,5.06729302]
[1770647694866,0.002,2021.7,2019.8,3.83]
[1770647695063,10.87258294,2021.6,2019.7,7.82738068]
[1770647695369,0.0735222,2021.5,2020.1,1.23755405]
[1770647695538,0.002,2021.7,2020.6,1.23720351]
[1770647695737,0.002,2021.7,2020.6,1.31072571]
[1770647696560,0.002,2021.7,2020.6,1.23720351]
[1770647696767,0.002,2021.7,2020.5,1.23729031]
[1770647697263,0.002,2021.7,2020.1,1.23750302]
[1770647697468,0.3359703,2021.5,2019.9,1.23765912]
[1770647697631,0.3359703,2021.5,2019.9,1.23764045]
[1770647697948,0.0735222,2021.3,2019.8,1.23771934]
[1770647698155,0.0735222,2021.3,2019.9,1.23768048]
[1770647698339,0.3359703,2021.5,2020.1,4.95010859]
[1770647698340,0.1024,2021.5,2020.1,4.95010859]
[1770647698543,0.1024,2021.2,2019.4,4.9519432]
[1770647698863,1.23682778,2021.3,2019.7,3.99738068]
[1770647699255,1.23682778,2021.3,2020.0,0.0735222]
[1770647699667,1.23670541,2021.5,2020.1,3.92385848]
[1770647699871,1.23670541,2021.5,2019.8,4.223801]
[1770647700042,1.23670541,2021.5,2019.8,3.92385848]
[1770647700375,10.77018294,2021.1,2019.3,1.2380287]
[1770647700594,0.0735222,2020.4,2018.9,0.001]
[1770647700757,0.0735222,2020.0,2018.9,0.001]
[1770647701066,0.1759222,2020.0,2018.9,0.001]
[1770647701266,0.1759222,2019.6,2018.5,0.001]
[1770647701465,0.1024,2019.5,2018.5,0.001]
[1770647701672,0.0735222,2019.2,2017.5,3.99738068]
[1770647701865,0.0735222,2019.2,2017.8,1.2389583]
[1770647702071,0.1759222,2018.9,2017.7,0.001]
[1770647702373,0.0735222,2018.9,2017.7,0.001]
[1770647702537,0.0735222,2018.3,2017.3,0.001]
[1770647702736,0.1024,2018.4,2017.3,0.001]
[1770647703145,1.23854347,2018.5,2017.3,0.001]
[1770647703363,10.84370514,2018.0,2017.0,0.001]
[1770647703563,10.77018294,2018.0,2017.0,0.001]
[1770647703764,3.5604,2018.4,2017.0,0.001]
[1770647704046,1.23854347,2018.5,2017.0,0.0745222]
[1770647704354,1.23854347,2018.5,2017.0,0.001]
[1770647704543,1.23872757,2018.2,2017.0,0.001]
[1770647704746,0.0735222,2017.7,2017.0,0.001]
[1770647704947,10.84370514,2018.0,2016.2,0.001]
[1770647704948,3.459,2017.6,2016.2,0.001]
[1770647705149,1.23872757,2018.2,2016.7,1.23963676]
[1770647705370,10.87258294,2018.1,2016.3,4.95938815]
[1770647705568,0.0735222,2017.9,2016.4,1.23981575]
[1770647705881,10.87258294,2018.1,2016.7,1.23964386]
[1770647706180,0.1024,2018.1,2016.2,0.0745222]
[1770647706471,0.1759222,2018.1,2016.7,1.23962064]
[1770647706702,1.23885034,2018.0,2016.4,1.23983336]
[1770647706982,0.1024,2017.7,2016.2,1.2409211]
[1770647707276,0.1024,2017.7,2016.2,0.001]
[1770647707486,0.0735222,2017.5,2016.2,0.001]
[1770647707687,0.1024,2017.7,2016.3,1.23988574]
[1770647707850,0.1759222,2017.7,2016.3,1.23988574]
[1770647708044,1.31237254,2018.0,2016.3,1.23988574]
[1770647708045,1.23885034,2018.0,2016.3,1.23988574]
[1770647708282,1.23885034,2018.0,2016.5,0.0735222]
[1770647708589,1.23854347,2018.5,2016.7,1.23964893]
[1770647708771,1.23854347,2018.5,2016.9,3.99738068]
[1770647708949,1.23854347,2018.5,2016.7,1.23964893]
[1770647709151,1.23854347,2018.5,2016.8,0.0735222]
[1770647709372,0.1024,2018.2,2016.6,1.23966833]
[1770647709886,10.83435198,2018.3,2016.6,1.2397025]
[1770647710177,0.0735222,2018.0,2016.6,1.2397025]
[1770647710374,0.0735222,2018.0,2016.6,1.23970682]
[1770647710587,1.23909595,2017.6,2016.2,0.001]
[1770647710791,0.2335703,2018.2,2016.2,0.001]
[1770647710792,1.23872757,2018.2,2016.7,3.99738068]
[1770647711153,1.23872757,2018.2,2016.3,0.0735222]
[1770647711351,0.0735222,2017.7,2016.2,3.92485848]
[1770647711583,0.0735222,2017.7,2016.2,0.001]
[1770647711900,0.0735222,2017.4,2016.2,0.001]
[1770647712297,0.0735222,2017.7,2016.2,0.001]
[1770647712452,0.0735222,2017.6,2016.2,0.001]
[1770647712651,1.23854347,2018.5,2016.7,3.92385848]
[1770647712882,4.95390685,2018.7,2016.9,3.99738068]
[1770647713049,4.95390685,2018.7,2016.9,3.92385848]
[1770647713250,0.0735222,2018.6,2017.0,3.92385848]
[1770647713491,4.95390685,2018.7,2017.0,3.92385848]
[1770647713676,0.0735222,2018.6,2017.0,3.92385848]
[1770647713881,0.0735222,2018.3,2016.5,7.38585848]
[1770647714072,0.0735222,2018.3,2016.2,0.1034]
[1770647714073,0.0735222,2018.0,2016.2,0.001]
[1770647714390,0.1024,2017.9,2016.2,0.001]
[1770647714556,0.0735222,2017.9,2016.2,0.001]
[1770647714751,0.0735222,2017.6,2016.2,0.001]
[1770647714953,0.1024,2017.7,2016.2,0.001]
[1770647715257,0.0735222,2017.6,2016.2,0.001]
[1770647715467,0.1024,2017.7,2016.2,0.001]
[1770647715750,0.0735222,2017.6,2016.2,0.001]
[1770647715957,4.95414823,2018.7,2016.9,0.0735222]
[1770647716263,0.002,2017.8,2017.0,3.91081928]
[1770647716466,0.002,2017.8,2016.5,3.91081928]
[1770647716786,0.002,2017.8,2016.4,0.001]
[1770647716993,0.002,2017.8,2016.4,3.91181928]
[1770647717673,0.002,2017.8,2016.4,0.001]
[1770647717859,0.0735222,2017.6,2016.4,0.001]
[1770647718084,0.002,2017.8,2016.4,0.001]
[1770647718487,0.1759222,2017.6,2016.4,0.001]
[1770647718792,0.1759222,2017.6,2016.2,0.001]
[1770647718793,1.239526,2016.9,2016.2,0.001]
[1770647718998,0.0735222,2016.6,2015.3,0.001]
[1770647719162,1.239526,2016.9,2015.7,1.2402505]
[1770647719163,3.5654,2016.8,2015.7,1.2402505]
[1770647719364,1.239526,2016.9,2015.7,1.24024547]
[1770647719564,0.0735222,2016.8,2015.7,1.24025846]
[1770647719763,0.0735222,2016.5,2015.5,1.24035672]
[1770647720062,0.0735222,2016.5,2015.5,1.24038176]
[1770647720252,1.239526,2016.9,2015.7,1.24025473]
[1770647720456,4.95810402,2017.3,2015.7,1.24025473]
[1770647720457,4.95618436,2017.7,2016.0,0.0735222]
[1770647720675,1.24103454,2017.8,2015.8,3.70010356]
[1770647720885,1.24103454,2017.8,2016.4,0.0735222]
[1770647721196,1.24103454,2017.8,2016.1,3.77362576]
[1770647721391,1.31455674,2017.8,2016.1,3.77362576]
[1770647721710,1.31455674,2017.8,2015.5,3.70010356]
[1770647721711,10.83435198,2017.4,2015.5,3.70010356]
[1770647721874,0.0735222,2016.8,2015.6,1.24028821]
[1770647722074,0.1024,2016.7,2015.3,0.001]
[1770647722278,0.0735222,2016.5,2015.4,1.24040313]
[1770647722482,0.0735222,2016.5,2015.3,0.001]
[1770647722999,0.0735222,2016.2,2015.3,0.001]
[1770647723202,0.0735222,2015.9,2015.1,0.001]
[1770647723372,0.0735222,2016.2,2015.1,0.001]
[1770647723893,0.1024,2016.3,2015.1,0.001]
[1770647723894,0.0735222,2016.1,2015.1,0.001]
[1770647724068,0.0735222,2015.5,2013.9,4.96541154]
[1770647724390,0.0735222,2015.8,2013.7,3.70010356]
[1770647724391,3.464,2015.4,2013.7,3.70010356]
[1770647724590,3.464,2016.0,2014.1,3.77362576]
[1770647724800,1.2402024,2015.8,2014.2,1.24118756]
[1770647725003,1.2402024,2015.8,2014.3,3.70010356]
[1770647725161,1.24001785,2016.1,2014.4,0.0735222]
[1770647725366,0.0735222,2016.0,2014.3,3.70010356]
[1770647725576,1.24001785,2016.1,2014.4,13.7249142]
[1770647725822,1.24001785,2016.1,2014.4,3.77362576]
[1770647725979,1.24001785,2016.1,2014.7,0.0735222]
[1770647726182,1.23946455,2017.1,2015.3,3.77362576]
[1770647726379,1.31298675,2017.1,2015.3,3.70010356]
[1770647726883,1.23964893,2016.7,2015.4,1.24044854]
[1770647727087,0.0735222,2016.5,2014.8,3.70010356]
[1770647727270,0.0735222,2016.5,2014.9,1.24070846]
[1770647727271,3.5385222,2016.5,2014.9,1.24070846]
[1770647727611,3.5385222,2016.5,2014.3,3.70010356]
[1770647727612,0.0735222,2015.9,2014.3,3.70010356]
[1770647727905,0.0735222,2015.9,2014.3,8.66445043]
[1770647728231,0.0735222,2015.6,2013.9,4.96531622]
[1770647728523,0.0735222,2015.3,2014.3,1.24111838]
[1770647728689,0.1024,2015.8,2014.5,1.24196014]
[1770647728890,1.24026392,2015.7,2014.5,0.001]
[1770647729474,1.24024579,2015.8,2014.5,0.001]
[1770647729673,0.0735222,2016.3,2014.5,0.001]
[1770647729674,4.95957942,2016.4,2014.9,3.70010356]
[1770647729979,0.0735222,2016.2,2014.5,0.001]
[1770647730176,0.0735222,2015.9,2014.5,0.001]
[1770647730403,0.1024,2015.9,2014.5,0.001]
[1770647730716,0.0735222,2016.2,2014.5,0.001]
[1770647730717,4.95957942,2016.4,2014.6,3.77362576]
[1770647730898,4.95957942,2016.4,2015.0,1.24069478]
[1770647731302,4.95957942,2016.4,2014.9,1.24074115]
[1770647731609,1.23958746,2016.8,2015.2,3.70010356]
[1770647731915,1.23958746,2016.8,2015.2,3.77362576]
[1770647732078,1.31310966,2016.8,2015.2,3.70010356]
[1770647732274,1.23958746,2016.8,2015.3,3.77362576]
[1770647732882,4.96034986,2017.0,2015.4,1.24044854]
[1770647733212,0.0735222,2016.8,2015.3,1.24050409]
[1770647733381,0.0735222,2016.5,2015.3,1.24050178]
[1770647733582,0.1759222,2016.8,2015.3,1.24050178]
[1770647733881,8.42533346,2016.9,2015.3,1.24050178]
[1770647734087,4.96034986,2017.0,2015.6,0.0735222]
[1770647734284,0.002,2017.0,2015.9,3.77362576]
[1770647734498,0.002,2017.8,2016.5,0.0735222]
[1770647734790,1.24097516,2017.8,2016.3,3.70010356]
[1770647734988,0.002,2017.8,2016.6,1.2397104]
[1770647735203,0.0735222,2017.6,2015.5,3.70010356]
[1770647735402,10.90787418,2017.5,2016.0,4.96031185]
[1770647735603,0.0735222,2017.2,2015.3,3.80250356]
[1770647735907,3.5415222,2017.8,2015.7,0.0735222]
[1770647736080,3.468,2017.8,2016.5,1.23976158]
[1770647736280,0.002,2017.8,2016.5,5.01338734]
[1770647736514,0.002,2017.8,2016.5,1.23976158]
[1770647737021,0.002,2017.8,2016.4,4.95915987]
[1770647737387,0.002,2017.8,2016.6,0.0735222]
[1770647737613,0.002,2017.8,2016.4,4.95915987]
[1770647738019,0.002,2017.8,2016.9,3.77362576]
[1770647738293,4.95152363,2019.7,2017.7,3.70010356]
[1770647738488,1.24030135,2018.9,2017.7,3.80250356]
[1770647738725,1.24030135,2018.9,2017.6,0.0735222]
[1770647739199,1.24030135,2018.9,2017.7,0.0735222]
[1770647739200,0.002,2018.9,2017.7,0.0735222]
[1770647739520,0.002,2018.9,2017.6,1.31260926]
[1770647739720,0.002,2018.9,2016.7,8.65799059]
[1770647740030,0.1024,2018.7,2016.9,3.77362576]
[1770647740226,0.1024,2018.7,2016.9,8.73152689]
[1770647740391,0.1024,2018.7,2017.0,1.23941999]
[1770647740729,0.0735222,2018.0,2015.8,3.70010356]
[1770647740913,0.1024,2017.9,2016.3,1.23986573]
[1770647741092,0.1024,2017.9,2016.0,1.24007936]
[1770647741093,0.1024,2017.7,2016.0,1.24007936]
[1770647741491,1.23897313,2017.8,2016.7,0.001]
[1770647741924,1.23897313,2017.8,2016.8,0.0735222]
[1770647742236,1.23897313,2017.8,2016.7,0.001]
[1770647742920,0.002,2018.4,2017.1,0.0735222]
[1770647743246,0.002,2018.6,2017.8,0.0735222]
[1770647743391,0.002,2018.9,2017.8,0.0735222]
[1770647743392,0.002,2018.9,2018.2,0.0735222]
[1770647743595,1.24030058,2018.9,2017.8,0.0735222]
[1770647743935,0.002,2019.5,2018.7,0.0735222]
[1770647744140,1.23993646,2019.5,2018.5,3.70010356]
[1770647744341,1.23993646,2019.5,2018.0,3.056351]
[1770647744648,1.2371338,2020.8,2019.5,0.0735222]
[1770647744936,1.2371338,2020.8,2019.3,0.0735222]
[1770647745147,0.0735222,2020.9,2019.3,1.2380437]
[1770647745636,0.0735222,2020.9,2019.3,1.23803788]
[1770647745930,0.0735222,2020.3,2018.2,3.69616916]
[1770647746135,0.0735222,2019.7,2017.6,3.69616916]
[1770647746339,0.4094925,2020.0,2018.1,1.2387546]
[1770647746504,0.0735222,2020.0,2017.9,4.95561761]
[1770647746705,0.1759222,2020.0,2018.1,0.0735222]
[1770647747010,0.1759222,2020.0,2017.9,1.23891173]
[1770647747011,1.23786888,2019.6,2017.9,1.23891173]
[1770647747235,1.23786888,2019.6,2017.8,1.23894677]
[1770647747236,0.1024,2019.5,2017.8,1.23894677]
[1770647747411,0.1759222,2019.0,2017.4,1.23917857]
[1770647747746,0.0735222,2018.7,2016.8,4.9582945]
[1770647748060,10.83435198,2019.0,2017.0,4.9578288]
[1770647748341,4.11263719,2018.9,2016.9,0.0735222]
[1770647748636,4.11263719,2018.9,2017.0,0.0735222]
[1770647748637,3.87906689,2018.9,2017.0,0.0735222]
[1770647748842,0.0735222,2018.6,2016.7,0.0745222]
[1770647749137,1.23835942,2018.8,2017.3,0.0735222]
[1770647749340,1.23835942,2018.8,2017.7,0.0735222]
[1770647749540,4.95181538,2019.6,2018.0,0.0735222]
[1770647750036,4.95181538,2019.6,2017.7,0.0735222]
[1770647750243,0.1024,2019.1,2017.2,3.69616916]
[1770647750648,4.95181538,2019.6,2018.0,0.0735222]
[1770647751007,4.95181538,2019.6,2018.1,1.23878895]
[1770647751210,4.95181538,2019.6,2018.0,1.23880733]
[1770647751642,1.23786888,2019.7,2018.0,1.31232953]
[1770647751858,1.23786888,2019.7,2018.0,1.23880733]
[1770647752056,1.23786888,2019.7,2018.0,1.31232953]
[1770647752535,1.2371338,2020.9,2019.0,0.0735222]
[1770647752869,0.0735222,2020.5,2018.6,3.69616916]
[1770647753024,1.23737873,2020.4,2018.8,1.23835942]
[1770647754125,1.23737873,2020.4,2019.0,0.0735222]
[1770647754360,1.23737873,2020.4,2018.8,1.23835942]
[1770647754556,4.94860875,2020.8,2018.8,1.23835942]
[1770647754557,0.25861535,2021.0,2019.7,0.0735222]
[1770647754761,1.49563681,2021.0,2019.8,0.0735222]
[1770647754928,1.49563681,2021.0,2019.4,0.1759222]